[Event "22nd ETCC Women 2019"]
[Site "Batumi"]
[Date "2019.10.25"]
[Round "2.27"]
[White "Velikic, Adela"]
[Black "Cyfka, Karina"]
[Result "1-0"]
[ECO "E20"]
[WhiteElo "2275"]
[BlackElo "2412"]
[Annotator "NA"]
[PlyCount "117"]
[EventDate "2019.10.24"]
[EventType "team-tourn"]
[EventCountry "GEO"]
[SourceTitle "playchess.com"]
[Source "ChessBase"]
[SourceQuality "1"]
[WhiteTeam "Serbia"]
[BlackTeam "Poland"]
[WhiteTeamCountry "SRB"]
[BlackTeamCountry "POL"]
[TimeControl "40/5400+30:1800+30"]

1. d4 {[%emt 0:00:00]} Nf6 {[%emt 0:00:00]} 2. c4 {[%emt 0:00:00]} e6 {[%emt 0:00:32]} 3. Nc3 {[%emt 0:00:00]} Bb4 {[%emt 0:01:06]} 4. g3 {[%emt 0:00:00]} O-O {[%emt 0:04:15]} 5. Bg2 {[%emt 0:00:02]} d6 {[%emt 0:01:40]} 6. Qb3 {[%emt 0:25:28]} Nc6 {[%emt 0:08:40]} 7. Bxc6 {[%emt 0:25:09]} Bxc3+ {[%emt 0:00:10]} 8. Qxc3 {[%emt 0:00:06]} bxc6 {[%emt 0:00:04]} 9. Bg5 {[%emt 0:00:16]} h6 {[%emt 0:06:12]} 10. Bxf6 {[%emt 0:02:28]} Qxf6 {[%emt 0:00:05]} 11. Rc1 {[%emt 0:03:20]} Qf5 {[%emt 0:07:12]} 12. b3 {[%emt 0:15:54]} c5 {[%emt 0:03:55]} 13. Qf3 {[%emt 0:02:01]} Qg5 {[%emt 0:07:19]} 14. Rd1 {[%emt 0:00:58]} Rb8 {[%emt 0:00:06]} 15. Nh3 {[%emt 0:02:14]} Qg6 {[%emt 0:12:58]} 16. Nf4 {[%emt 0:03:24]} Qc2 {[%emt 0:02:06]} 17. dxc5 {[%emt 0:00:37]} Bb7 {[%emt 0:10:28]} 18. c6 {[%emt 0:00:41]} Ba8 {[%emt 0:00:03]} 19. O-O {[%emt 0:01:41]} Rb6 {[%emt 0:00:19]} 20. Ra1 {[%emt 0:13:43]} Rxc6 {[%emt 0:05:21]} 21. Qe3 {[%emt 0:00:15]} Qf5 {[%emt 0:04:55]} 22. Nd3 {[%emt 0:01:03]} a5 {[%emt 0:01:52]} 23. Rac1 {[%emt 0:00:44]} Rd8 {[%emt 0:03:32]} 24. f3 {[%emt 0:00:42]} Ra6 {[%emt 0:02:48]} 25. Rfd1 {[%emt 0:00:19]} Rb8 {[%emt 0:03:12]} 26. Rd2 {[%emt 0:01:12]} c5 {[%emt 0:01:20]} 27. Nb2 {[%emt 0:00:34]} Qf6 {[%emt 0:03:28]} 28. Na4 {[%emt 0:00:29]} Rc8 {[%emt 0:02:17]} 29. Rcd1 {[%emt 0:00:15]} Qe7 {[%emt 0:00:58]} 30. Nc3 {[%emt 0:00:24]} Qf8 {[%emt 0:00:38]} 31. Qf4 {[%emt 0:00:40]} e5 {[%emt 0:05:04]} 32. Qf5 {[%emt 0:00:31]} Rb8 {[%emt 0:01:38]} 33. Nb5 {[%emt 0:00:25]} d5 {[%emt 0:01:16]} 34. Qxe5 {[%emt 0:00:28]} Re6 {[%emt 0:00:19]} 35. Qc7 {[%emt 0:00:43]} d4 {[%emt 0:00:27]} 36. Qxa5 {[%emt 0:00:35]} Bc6 {[%emt 0:01:09]} 37. Nc7 {[%emt 0:00:35]} Qd8 {[%emt 0:00:28]} 38. b4 {[%emt 0:00:24]} Rxb4 {[%emt 0:00:22]} 39. Qxc5 {[%emt 0:00:11]} Qxc7 {[%emt 0:00:40]} 40. Qxb4 {[%emt 0:00:00]} Rg6 {[%emt 0:00:00]} 41. Kg2 {[%emt 0:03:48]} Re6 {[%emt 0:07:25]} 42. Qb2 {[%emt 0:06:42]} Qe5 {[%emt 0:01:02]} 43. Rf1 {[%emt 0:05:44]} Rd6 {[%emt 0:01:07]} 44. a3 {[%emt 0:01:17]} h5 {[%emt 0:01:27]} 45. Rfd1 {[%emt 0:02:46]} Ba4 {[%emt 0:01:02]} 46. Rc1 {[%emt 0:02:17]} h4 {[%emt 0:05:19]} 47. c5 {[%emt 0:04:31]} h3+ {[%emt 0:07:21]} 48. Kf1 {[%emt 0:00:47]} Rd8 {[%emt 0:02:00]} 49. Rc4 {[%emt 0:01:35]} Bc6 {[%emt 0:07:32]} 50. Rcxd4 {[%emt 0:00:45]} Re8 {[%emt 0:00:07]} 51. Rd8 {[%emt 0:05:14]} Qxc5 {[%emt 0:00:28]} 52. Rxe8+ {[%emt 0:00:10]} Bxe8 {[%emt 0:00:03]} 53. Rd8 {[%emt 0:00:33]} Qe3 {[%emt 0:01:28]} 54. Qd2 {[%emt 0:00:57]} Qe7 {[%emt 0:00:37]} 55. a4 {[%emt 0:00:35]} Kh7 {[%emt 0:00:15]} 56. a5 {[%emt 0:00:52]} Bc6 {[%emt 0:00:48]} 57. Qd6 {[%emt 0:00:40]} Qb7 {[%emt 0:00:17]} 58. Qd3+ {[%emt 0:00:17]} g6 {[%emt 0:00:31]} 59. Qd4 {[%emt 0:00:21]} 1-0

[Event "22nd ETCC Women 2019"]
[Site "Batumi"]
[Date "2019.10.25"]
[Round "2.27"]
[White "Manova, Ivana"]
[Black "Hrescak, Ivana"]
[Result "0-1"]
[ECO "B23"]
[WhiteElo "1795"]
[BlackElo "2226"]
[Annotator "NA"]
[PlyCount "52"]
[EventDate "2019.10.24"]
[EventType "team-tourn"]
[EventCountry "GEO"]
[SourceTitle "playchess.com"]
[Source "ChessBase"]
[SourceQuality "1"]
[WhiteTeam "Macedonia"]
[BlackTeam "Slovenia"]
[WhiteTeamCountry "MKD"]
[BlackTeamCountry "SLO"]
[TimeControl "40/5400+30:1800+30"]

1. e4 {[%emt 0:00:00]} c5 {[%emt 0:00:00]} 2. Nc3 {[%emt 0:00:00]} d6 {[%emt 0:00:00]} 3. Nf3 {[%emt 0:00:07]} Nf6 {[%emt 0:01:37]} 4. d4 {[%emt 0:08:43]} cxd4 {[%emt 0:00:10]} 5. Qxd4 {[%emt 0:00:35]} a6 {[%emt 0:02:21]} 6. Bg5 {[%emt 0:07:59]} Nc6 {[%emt 0:03:32]} 7. Qd2 {[%emt 0:02:38]} h6 {[%emt 0:04:08]} 8. Bh4 {[%emt 0:02:53]} g5 {[%emt 0:06:58]} 9. Bg3 {[%emt 0:01:15]} Nh5 {[%emt 0:02:00]} 10. Nd5 {[%emt 0:07:04]} Bg7 {[%emt 0:03:48]} 11. c3 {[%emt 0:06:34]} Be6 {[%emt 0:04:08]} 12. Be2 {[%emt 0:04:26]} Rc8 {[%emt 0:04:34]} 13. O-O {[%emt 0:12:14]} O-O {[%emt 0:05:22]} 14. Rad1 {[%emt 0:07:07]} Qe8 {[%emt 0:13:07]} 15. Qe3 {[%emt 0:05:15]} Kh8 {[%emt 0:09:10]} 16. Nxg5 {[%emt 0:17:10]} Nxg3 {[%emt 0:03:30]} 17. fxg3 {[%emt 0:00:13]} hxg5 {[%emt 0:02:28]} 18. Qxg5 {[%emt 0:00:17]} Kg8 {[%emt 0:11:39]} 19. Nf4 {[%emt 0:09:39]} Ne5 {[%emt 0:07:01]} 20. Nxe6 {[%emt 0:03:02]} fxe6 {[%emt 0:00:03]} 21. Bh5 {[%emt 0:00:10]} Qb5 {[%emt 0:00:57]} 22. Qxe7 {[%emt 0:01:44]} Qc5+ {[%emt 0:06:49]} 23. Kh1 {[%emt 0:00:06]} Qc4 {[%emt 0:00:09]} 24. Kg1 {[%emt 0:00:41]} Bh6 {[%emt 0:04:59]} 25. Rfe1 {[%emt 0:02:00]} Rcd8 {[%emt 0:02:31]} 26. Rd4 {[%emt 0:00:26]} Be3+ {[%emt 0:00:48]} 0-1

[Event "22nd ETCC Women 2019"]
[Site "Batumi"]
[Date "2019.10.25"]
[Round "2.28"]
[White "Sliwicka, Alicja"]
[Black "Gajcin, Marina"]
[Result "1-0"]
[ECO "B33"]
[WhiteElo "2307"]
[BlackElo "2262"]
[Annotator "NA"]
[PlyCount "69"]
[EventDate "2019.10.24"]
[EventType "team-tourn"]
[EventCountry "GEO"]
[SourceTitle "playchess.com"]
[Source "ChessBase"]
[SourceQuality "1"]
[WhiteTeam "Poland"]
[BlackTeam "Serbia"]
[WhiteTeamCountry "POL"]
[BlackTeamCountry "SRB"]
[TimeControl "40/5400+30:1800+30"]

1. e4 {[%emt 0:00:00]} c5 {[%emt 0:00:00]} 2. Nf3 {[%emt 0:00:00]} Nc6 {[%emt 0:00:00]} 3. d4 {[%emt 0:00:00]} cxd4 {[%emt 0:00:00]} 4. Nxd4 {[%emt 0:00:00]} Nf6 {[%emt 0:00:00]} 5. Nc3 {[%emt 0:00:21]} e5 {[%emt 0:00:00]} 6. Ndb5 {[%emt 0:00:12]} d6 {[%emt 0:00:08]} 7. Bg5 {[%emt 0:00:23]} a6 {[%emt 0:00:07]} 8. Na3 {[%emt 0:00:09]} b5 {[%emt 0:00:05]} 9. Bxf6 {[%emt 0:00:22]} gxf6 {[%emt 0:00:09]} 10. Nd5 {[%emt 0:00:22]} f5 {[%emt 0:00:18]} 11. Bd3 {[%emt 0:01:01]} Be6 {[%emt 0:07:34]} 12. O-O {[%emt 0:01:13]} Bg7 {[%emt 0:12:11]} 13. Qh5 {[%emt 0:02:28]} h6 {[%emt 0:08:56]} 14. c3 {[%emt 0:06:57]} O-O {[%emt 0:02:12]} 15. Nc2 {[%emt 0:03:38]} fxe4 {[%emt 0:09:38]} 16. Bxe4 {[%emt 0:00:22]} f5 {[%emt 0:03:33]} 17. Nf4 {[%emt 0:02:28]} exf4 {[%emt 0:17:56]} 18. Bxc6 {[%emt 0:00:16]} Rc8 {[%emt 0:02:46]} 19. Qf3 {[%emt 0:16:38]} Kh8 {[%emt 0:08:48]} 20. Rfe1 {[%emt 0:04:41]} Be5 {[%emt 0:02:01]} 21. Nd4 {[%emt 0:04:00]} Bc4 {[%emt 0:01:41]} 22. Rad1 {[%emt 0:07:32]} Qg5 {[%emt 0:05:36]} 23. Bd7 {[%emt 0:04:25]} Rc7 {[%emt 0:00:47]} 24. Be6 {[%emt 0:06:37]} Qg6 {[%emt 0:02:32]} 25. Bxc4 {[%emt 0:02:11]} Rxc4 {[%emt 0:00:09]} 26. Nc6 {[%emt 0:07:30]} Re4 {[%emt 0:01:12]} 27. Rf1 {[%emt 0:06:51]} Qe6 {[%emt 0:03:20]} 28. Rd3 {[%emt 0:03:05]} Bg7 {[%emt 0:04:10]} 29. Qd1 {[%emt 0:02:07]} Rf6 {[%emt 0:00:55]} 30. Nd8 {[%emt 0:03:33]} Qxa2 {[%emt 0:04:46]} 31. Rxd6 {[%emt 0:00:53]} Qxb2 {[%emt 0:01:05]} 32. Rxf6 {[%emt 0:01:55]} Bxf6 {[%emt 0:00:00]} 33. Qd7 {[%emt 0:02:35]} Re7 {[%emt 0:01:55]} 34. Qc8 {[%emt 0:03:41]} Qxc3 {[%emt 0:00:51]} 35. Nc6+ {[%emt 0:00:18]} 1-0

[Event "22nd ETCC Women 2019"]
[Site "Batumi"]
[Date "2019.10.25"]
[Round "2.28"]
[White "Vidic, Teja"]
[Black "Koskoska, Gabriela"]
[Result "1-0"]
[ECO "B11"]
[WhiteElo "2174"]
[BlackElo "2036"]
[Annotator "NA"]
[PlyCount "69"]
[EventDate "2019.10.24"]
[EventType "team-tourn"]
[EventCountry "GEO"]
[SourceTitle "playchess.com"]
[Source "ChessBase"]
[SourceQuality "1"]
[WhiteTeam "Slovenia"]
[BlackTeam "Macedonia"]
[WhiteTeamCountry "SLO"]
[BlackTeamCountry "MKD"]
[TimeControl "40/5400+30:1800+30"]

1. e4 {[%emt 0:00:00]} c6 {[%emt 0:00:00]} 2. Nf3 {[%emt 0:00:00]} d5 {[%emt 0:00:16]} 3. Nc3 {[%emt 0:00:00]} Bg4 {[%emt 0:01:54]} 4. h3 {[%emt 0:00:00]} Bxf3 {[%emt 0:00:11]} 5. Qxf3 {[%emt 0:00:02]} e6 {[%emt 0:00:03]} 6. Be2 {[%emt 0:00:06]} Nd7 {[%emt 0:00:42]} 7. d4 {[%emt 0:00:19]} dxe4 {[%emt 0:02:09]} 8. Nxe4 {[%emt 0:00:12]} Ngf6 {[%emt 0:00:13]} 9. O-O {[%emt 0:00:12]} Nxe4 {[%emt 0:00:19]} 10. Qxe4 {[%emt 0:00:05]} Nf6 {[%emt 0:00:10]} 11. Qd3 {[%emt 0:00:05]} Be7 {[%emt 0:05:00]} 12. Qg3 {[%emt 0:08:03]} Qxd4 {[%emt 0:28:59]} 13. Rd1 {[%emt 0:03:14]} Qb6 {[%emt 0:02:32]} 14. Be3 {[%emt 0:01:25]} c5 {[%emt 0:05:40]} 15. Qxg7 {[%emt 0:21:59]} Rg8 {[%emt 0:00:48]} 16. Qh6 {[%emt 0:00:06]} Qc6 {[%emt 0:09:14]} 17. g3 Rg6 {[%emt 0:05:20]} 18. Qf4 {[%emt 0:09:16]} Nd5 {[%emt 0:02:28]} 19. Bf3 {[%emt 0:12:24]} Rd8 {[%emt 0:14:59]} 20. Qe5 {[%emt 0:13:56]} Bf6 {[%emt 0:12:22]} 21. Bxd5 {[%emt 0:10:42]} Rxd5 {[%emt 0:01:54]} 22. Qb8+ {[%emt 0:00:12]} Ke7 {[%emt 0:01:22]} 23. Qxa7 {[%emt 0:02:25]} Bd4 {[%emt 0:00:31]} 24. Bxd4 {[%emt 0:01:10]} cxd4 {[%emt 0:00:14]} 25. Rxd4 {[%emt 0:00:25]} Rh5 {[%emt 0:02:00]} 26. Qb8 {[%emt 0:04:08]} Qb6 {[%emt 0:00:54]} 27. Rad1 {[%emt 0:00:23]} Rd5 {[%emt 0:01:08]} 28. Rxd5 {[%emt 0:01:49]} exd5 {[%emt 0:00:04]} 29. Rxd5 {[%emt 0:00:44]} Re6 {[%emt 0:00:28]} 30. Kg2 {[%emt 0:02:10]} f6 {[%emt 0:00:50]} 31. Qg8 {[%emt 0:01:48]} Re2 {[%emt 0:01:43]} 32. Qxh7+ {[%emt 0:03:25]} Kf8 {[%emt 0:00:25]} 33. Qh8+ {[%emt 0:00:04]} Kf7 {[%emt 0:00:42]} 34. Rd7+ {[%emt 0:01:14]} Kg6 {[%emt 0:00:42]} 35. Qh7+ {[%emt 0:00:53]} 1-0

[Event "22nd ETCC Women 2019"]
[Site "Batumi"]
[Date "2019.10.25"]
[Round "2.29"]
[White "Hoang, Thanh Trang"]
[Black "Avramidou, Anastasia"]
[Result "1-0"]
[ECO "A48"]
[WhiteElo "2414"]
[BlackElo "2247"]
[Annotator "NA"]
[PlyCount "127"]
[EventDate "2019.10.24"]
[EventType "team-tourn"]
[EventCountry "GEO"]
[SourceTitle "playchess.com"]
[Source "ChessBase"]
[SourceQuality "1"]
[WhiteTeam "Hungary"]
[BlackTeam "Greece"]
[WhiteTeamCountry "HUN"]
[BlackTeamCountry "GRE"]
[TimeControl "40/5400+30:1800+30"]

1. d4 {[%emt 0:00:00]} Nf6 {[%emt 0:00:00]} 2. Nf3 {[%emt 0:00:11]} g6 {[%emt 0:00:00]} 3. Bf4 {[%emt 0:00:36]} Bg7 {[%emt 0:00:12]} 4. e3 {[%emt 0:00:30]} d6 {[%emt 0:00:36]} 5. Be2 {[%emt 0:00:41]} Nh5 {[%emt 0:05:15]} 6. Bg5 {[%emt 0:02:08]} h6 {[%emt 0:00:12]} 7. Bh4 {[%emt 0:00:15]} g5 {[%emt 0:00:10]} 8. Nfd2 {[%emt 0:01:28]} gxh4 {[%emt 0:04:39]} 9. Bxh5 {[%emt 0:00:11]} e6 {[%emt 0:00:17]} 10. Nc3 {[%emt 0:05:04]} Nd7 {[%emt 0:09:11]} 11. Qe2 {[%emt 0:07:48]} Qe7 {[%emt 0:01:55]} 12. Bf3 {[%emt 0:03:37]} c5 {[%emt 0:10:53]} 13. Nb3 {[%emt 0:09:57]} a6 {[%emt 0:07:56]} 14. O-O {[%emt 0:02:37]} O-O {[%emt 0:03:05]} 15. Rad1 {[%emt 0:02:08]} Rb8 {[%emt 0:04:16]} 16. dxc5 {[%emt 0:07:57]} dxc5 {[%emt 0:00:33]} 17. Ne4 {[%emt 0:01:37]} Be5 {[%emt 0:05:19]} 18. Qd2 {[%emt 0:09:05]} b6 {[%emt 0:15:01]} 19. Nd6 {[%emt 0:04:23]} Nf6 {[%emt 0:10:51]} 20. Rfe1 {[%emt 0:08:22]} Qc7 {[%emt 0:04:07]} 21. Nxc8 {[%emt 0:07:26]} Bxh2+ {[%emt 0:01:53]} 22. Kh1 {[%emt 0:00:29]} Rbxc8 {[%emt 0:00:07]} 23. Qe2 {[%emt 0:03:45]} b5 {[%emt 0:04:19]} 24. c4 {[%emt 0:01:37]} b4 {[%emt 0:02:50]} 25. Nxc5 {[%emt 0:02:30]} Qxc5 {[%emt 0:00:07]} 26. Kxh2 {[%emt 0:00:10]} Qxc4 {[%emt 0:00:22]} 27. Rd4 {[%emt 0:01:40]} Qxe2 {[%emt 0:04:31]} 28. Rxe2 {[%emt 0:00:22]} a5 {[%emt 0:00:03]} 29. Rxh4 {[%emt 0:00:27]} Kg7 {[%emt 0:01:18]} 30. Rd4 {[%emt 0:01:09]} e5 {[%emt 0:00:45]} 31. Rh4 {[%emt 0:02:01]} Rfd8 {[%emt 0:00:05]} 32. b3 {[%emt 0:04:04]} Rc3 {[%emt 0:03:09]} 33. Bb7 {[%emt 0:01:43]} Rd6 {[%emt 0:01:02]} 34. g3 {[%emt 0:04:50]} Rb6 {[%emt 0:00:38]} 35. Bg2 {[%emt 0:00:31]} Rd6 {[%emt 0:00:04]} 36. Bb7 {[%emt 0:01:48]} Rd1 {[%emt 0:00:30]} 37. Kg2 {[%emt 0:00:58]} Rc7 {[%emt 0:01:00]} 38. Ba8 {[%emt 0:01:06]} Rc8 {[%emt 0:00:25]} 39. Bb7 {[%emt 0:00:12]} Rc7 {[%emt 0:00:03]} 40. Ba8 {[%emt 0:00:00]} Rdc1 {[%emt 0:00:00]} 41. Rh1 {[%emt 0:09:26]} R7c2 {[%emt 0:13:01]} 42. Rhe1 {[%emt 0:04:47]} Ne8 {[%emt 0:01:18]} 43. Rxc1 {[%emt 0:07:13]} Rxe2 {[%emt 0:03:41]} 44. Rc5 {[%emt 0:00:32]} Rxa2 {[%emt 0:00:04]} 45. Rxe5 {[%emt 0:00:10]} Nc7 {[%emt 0:00:20]} 46. Bc6 {[%emt 0:00:57]} Ra3 {[%emt 0:02:43]} 47. Ba4 {[%emt 0:03:05]} Kf6 {[%emt 0:00:39]} 48. Rxa5 {[%emt 0:00:15]} Ke6 {[%emt 0:00:23]} 49. Rh5 {[%emt 0:01:34]} Nd5 {[%emt 0:02:42]} 50. Bb5 {[%emt 0:02:44]} Nb6 {[%emt 0:04:16]} 51. Rxh6+ {[%emt 0:01:10]} f6 {[%emt 0:00:05]} 52. g4 {[%emt 0:01:09]} Ra5 {[%emt 0:05:28]} 53. Bd3 {[%emt 0:01:40]} Rc5 {[%emt 0:00:38]} 54. Bf5+ {[%emt 0:01:39]} Ke7 {[%emt 0:00:14]} 55. Rh7+ {[%emt 0:00:30]} Kd6 {[%emt 0:00:33]} 56. Rb7 {[%emt 0:00:27]} Kc6 {[%emt 0:02:10]} 57. Rf7 {[%emt 0:00:12]} Nd5 {[%emt 0:01:29]} 58. Be4 {[%emt 0:01:40]} Kb5 {[%emt 0:00:14]} 59. Bxd5 {[%emt 0:00:14]} Rxd5 {[%emt 0:00:04]} 60. Rxf6 {[%emt 0:00:07]} Rd3 {[%emt 0:00:12]} 61. g5 {[%emt 0:00:28]} Rxb3 {[%emt 0:00:05]} 62. g6 {[%emt 0:00:17]} Rc3 {[%emt 0:00:06]} 63. g7 {[%emt 0:00:15]} Rc8 {[%emt 0:00:06]} 64. Rf8 {[%emt 0:00:07]} 1-0

[Event "22nd ETCC Women 2019"]
[Site "Batumi"]
[Date "2019.10.25"]
[Round "2.30"]
[White "Pavlidou, Ekaterini"]
[Black "Gara, Anita"]
[Result "1/2-1/2"]
[ECO "D90"]
[WhiteElo "2183"]
[BlackElo "2366"]
[Annotator "NA"]
[PlyCount "124"]
[EventDate "2019.10.24"]
[EventType "team-tourn"]
[EventCountry "GEO"]
[SourceTitle "playchess.com"]
[Source "ChessBase"]
[SourceQuality "1"]
[WhiteTeam "Greece"]
[BlackTeam "Hungary"]
[WhiteTeamCountry "GRE"]
[BlackTeamCountry "HUN"]
[TimeControl "40/5400+30:1800+30"]

1. d4 {[%emt 0:00:00]} Nf6 {[%emt 0:00:00]} 2. c4 {[%emt 0:00:15]} g6 {[%emt 0:00:00]} 3. Nc3 {[%emt 0:00:17]} d5 {[%emt 0:00:07]} 4. Nf3 {[%emt 0:00:31]} Bg7 {[%emt 0:00:15]} 5. h4 {[%emt 0:00:20]} c6 {[%emt 0:01:15]} 6. Bg5 {[%emt 0:01:00]} dxc4 {[%emt 0:01:11]} 7. e4 {[%emt 0:03:55]} Be6 {[%emt 0:00:54]} 8. Qd2 {[%emt 0:18:56]} h6 {[%emt 0:04:22]} 9. Be3 {[%emt 0:09:09]} b5 {[%emt 0:02:39]} 10. a3 {[%emt 0:00:33]} Qa5 {[%emt 0:04:35]} 11. Rd1 {[%emt 0:01:16]} Nbd7 {[%emt 0:04:44]} 12. Be2 {[%emt 0:15:29]} Rd8 {[%emt 0:01:41]} 13. d5 {[%emt 0:02:40]} cxd5 {[%emt 0:11:31]} 14. Nd4 {[%emt 0:05:23]} Rc8 {[%emt 0:21:12]} 15. O-O {[%emt 0:10:03]} dxe4 {[%emt 0:10:16]} 16. Ndxb5 {[%emt 0:03:12]} Nc5 {[%emt 0:10:02]} 17. Bf4 {[%emt 0:08:09]} Nd3 {[%emt 0:06:13]} 18. Bc7 {[%emt 0:06:09]} Qa6 {[%emt 0:03:33]} 19. Bxd3 {[%emt 0:03:30]} exd3 {[%emt 0:00:47]} 20. Rde1 {[%emt 0:02:08]} Qb7 {[%emt 0:02:15]} 21. Be5 {[%emt 0:01:36]} O-O {[%emt 0:04:57]} 22. Bf4 {[%emt 0:01:53]} Kh7 {[%emt 0:01:47]} 23. Nd4 {[%emt 0:03:08]} Bg4 {[%emt 0:00:14]} 24. f3 {[%emt 0:01:10]} Nd5 {[%emt 0:02:46]} 25. Be5 {[%emt 0:00:43]} Bd7 {[%emt 0:01:50]} 26. Bxg7 {[%emt 0:00:21]} Kxg7 {[%emt 0:00:02]} 27. Nxd5 {[%emt 0:00:44]} Qxd5 {[%emt 0:00:02]} 28. Qc3 {[%emt 0:00:02]} Qc5 {[%emt 0:02:46]} 29. f4 {[%emt 0:01:16]} Kg8 {[%emt 0:01:08]} 30. Re5 {[%emt 0:00:11]} Qb6 {[%emt 0:00:27]} 31. Kh1 {[%emt 0:00:51]} Qf6 {[%emt 0:00:14]} 32. h5 {[%emt 0:00:11]} Qh4+ {[%emt 0:00:33]} 33. Kg1 {[%emt 0:00:02]} Bg4 {[%emt 0:00:41]} 34. hxg6 {[%emt 0:00:51]} fxg6 {[%emt 0:00:01]} 35. b3 {[%emt 0:00:28]} Qg3 {[%emt 0:01:52]} 36. Rxe7 {[%emt 0:00:54]} Rxf4 {[%emt 0:00:33]} 37. Nf3 {[%emt 0:00:05]} Rf7 {[%emt 0:00:31]} 38. Rxf7 {[%emt 0:00:47]} Kxf7 {[%emt 0:00:04]} 39. Ne5+ {[%emt 0:00:51]} Kg8 {[%emt 0:00:17]} 40. Nxg6 {[%emt 0:00:00]} Qe3+ {[%emt 0:00:00]} 41. Kh1 {[%emt 0:00:20]} Kh7 {[%emt 0:02:17]} 42. Nf8+ {[%emt 0:06:53]} Kg8 {[%emt 0:11:50]} 43. Qf6 {[%emt 0:04:22]} Qe8 {[%emt 0:01:34]} 44. Ng6 {[%emt 0:07:25]} Kh7 {[%emt 0:01:18]} 45. Ne5 {[%emt 0:03:01]} Qh5+ {[%emt 0:09:54]} 46. Kg1 {[%emt 0:00:02]} Rg8 {[%emt 0:00:53]} 47. Nxc4 {[%emt 0:02:36]} Rg7 {[%emt 0:02:10]} 48. Qf4 {[%emt 0:03:22]} Qc5+ {[%emt 0:01:23]} 49. Kh2 {[%emt 0:01:38]} Qd5 {[%emt 0:00:10]} 50. Ne5 {[%emt 0:02:10]} Be6 {[%emt 0:01:25]} 51. Rf2 {[%emt 0:01:14]} Rg5 {[%emt 0:00:31]} 52. Nc4 {[%emt 0:00:55]} Rf5 {[%emt 0:03:04]} 53. Qc7+ {[%emt 0:00:05]} Rf7 {[%emt 0:00:13]} 54. Rxf7+ {[%emt 0:00:12]} Bxf7 {[%emt 0:00:01]} 55. Qxa7 {[%emt 0:01:58]} Kg7 {[%emt 0:01:00]} 56. Qe3 {[%emt 0:01:08]} Qh5+ {[%emt 0:00:04]} 57. Kg3 {[%emt 0:00:59]} Qg6+ {[%emt 0:01:11]} 58. Kf2 {[%emt 0:00:02]} Qf6+ {[%emt 0:00:12]} 59. Qf3 {[%emt 0:01:24]} Qd4+ {[%emt 0:00:12]} 60. Qe3 {[%emt 0:00:31]} Qf6+ {[%emt 0:00:01]} 61. Qf3 {[%emt 0:00:33]} Qd4+ {[%emt 0:00:16]} 62. Qe3 {[%emt 0:00:23]} Qf6+ {[%emt 0:00:03]} 1/2-1/2

[Event "22nd ETCC Women 2019"]
[Site "Batumi"]
[Date "2019.10.25"]
[Round "2.31"]
[White "Lazarne Vajda, Szidonia"]
[Black "Makropoulou, Marina"]
[Result "0-1"]
[ECO "E46"]
[WhiteElo "2353"]
[BlackElo "2201"]
[Annotator "NA"]
[PlyCount "96"]
[EventDate "2019.10.24"]
[EventType "team-tourn"]
[EventCountry "GEO"]
[SourceTitle "playchess.com"]
[Source "ChessBase"]
[SourceQuality "1"]
[WhiteTeam "Hungary"]
[BlackTeam "Greece"]
[WhiteTeamCountry "HUN"]
[BlackTeamCountry "GRE"]
[TimeControl "40/5400+30:1800+30"]

1. d4 {[%emt 0:00:00]} Nf6 {[%emt 0:00:00]} 2. c4 {[%emt 0:00:20]} e6 {[%emt 0:00:18]} 3. Nc3 {[%emt 0:00:58]} Bb4 {[%emt 0:02:07]} 4. e3 {[%emt 0:01:16]} O-O {[%emt 0:00:16]} 5. Bd2 {[%emt 0:02:04]} b6 {[%emt 0:04:34]} 6. Nf3 {[%emt 0:05:40]} Bb7 {[%emt 0:02:12]} 7. Rc1 {[%emt 0:02:05]} c5 {[%emt 0:06:56]} 8. a3 {[%emt 0:10:45]} Ba5 {[%emt 0:13:52]} 9. Be2 {[%emt 0:07:09]} d6 {[%emt 0:04:56]} 10. O-O {[%emt 0:02:42]} Nc6 {[%emt 0:08:34]} 11. d5 {[%emt 0:20:04]} Ne7 {[%emt 0:07:12]} 12. dxe6 {[%emt 0:01:32]} fxe6 {[%emt 0:00:05]} 13. Ng5 {[%emt 0:08:16]} Qd7 {[%emt 0:01:51]} 14. Bf3 {[%emt 0:05:06]} Bxf3 {[%emt 0:01:32]} 15. Nxf3 {[%emt 0:02:26]} Nc6 {[%emt 0:02:37]} 16. Qe2 {[%emt 0:02:46]} Qe7 {[%emt 0:09:50]} 17. Rfd1 {[%emt 0:00:43]} Rad8 {[%emt 0:01:25]} 18. Be1 {[%emt 0:02:27]} Bxc3 {[%emt 0:02:53]} 19. Bxc3 {[%emt 0:01:45]} Ne4 {[%emt 0:00:43]} 20. Be1 {[%emt 0:03:31]} Rf7 {[%emt 0:03:42]} 21. Nd2 {[%emt 0:01:20]} Nxd2 {[%emt 0:04:14]} 22. Rxd2 {[%emt 0:00:17]} d5 {[%emt 0:00:22]} 23. b4 {[%emt 0:02:54]} d4 {[%emt 0:01:40]} 24. b5 {[%emt 0:01:30]} Na5 {[%emt 0:00:23]} 25. Rd3 {[%emt 0:04:26]} e5 {[%emt 0:00:22]} 26. exd4 {[%emt 0:00:32]} exd4 {[%emt 0:00:56]} 27. Qxe7 {[%emt 0:01:16]} Rxe7 {[%emt 0:00:02]} 28. Bxa5 {[%emt 0:00:07]} bxa5 {[%emt 0:00:04]} 29. Kf1 {[%emt 0:01:31]} Rde8 {[%emt 0:00:45]} 30. Rd2 {[%emt 0:02:34]} Kf7 {[%emt 0:00:29]} 31. a4 {[%emt 0:00:22]} Kf6 {[%emt 0:00:33]} 32. h3 {[%emt 0:00:52]} g5 {[%emt 0:03:33]} 33. Rb1 {[%emt 0:00:21]} Re6 {[%emt 0:00:27]} 34. g3 {[%emt 0:01:42]} Kf5 {[%emt 0:00:46]} 35. Kg2 {[%emt 0:01:27]} Re1 {[%emt 0:01:18]} 36. Rdb2 {[%emt 0:03:15]} Rxb1 {[%emt 0:00:32]} 37. Rxb1 {[%emt 0:00:04]} Re2 {[%emt 0:00:34]} 38. b6 {[%emt 0:00:19]} axb6 {[%emt 0:00:10]} 39. Rxb6 {[%emt 0:00:05]} Rc2 {[%emt 0:00:53]} 40. Rb5 {[%emt 0:00:00]} Rxc4 {[%emt 0:00:00]} 41. Rxa5 {[%emt 0:02:38]} Ke4 {[%emt 0:02:03]} 42. Ra7 {[%emt 0:14:17]} d3 {[%emt 0:02:04]} 43. Re7+ {[%emt 0:02:16]} Kd4 {[%emt 0:00:12]} 44. Kf3 {[%emt 0:12:33]} Kc3 {[%emt 0:01:15]} 45. Rd7 {[%emt 0:03:27]} Rd4 {[%emt 0:01:43]} 46. Rxd4 {[%emt 0:00:41]} cxd4 {[%emt 0:00:28]} 47. a5 {[%emt 0:00:28]} d2 {[%emt 0:00:05]} 48. Ke2 {[%emt 0:00:10]} Kc2 {[%emt 0:00:04]} 0-1